Cogmind - Beta 14 @@@ ROGUE MODE // 2024.09.18 @ 16:04:46 Player: Minty Result: Destroyed self via exploding Plasma Injector Performance ------------- Evolutions (0) 0 Regions Visited (2) 400 Robots Destroyed (22) 110 Value Destroyed (346) 346 Prototype IDs (2) 40 Alien Tech Used (0) 0 Bonus (0) 0 TOTAL SCORE: 896 Bonus ------- None Cogmind --------- Core Integrity 0/250 Matter 189/300 Energy 121/125 System Corruption 0% Temperature Cool (12) Movement Rolling (100) Location -10/Mines Parts ------- > --- POWER (1) -------- Light Ion Engine > --- PROPULSION (2) --- Compact Wheel Compact Wheel > --- UTILITY (2) ------ Small Storage Unit Signal Interpreter > --- WEAPON (2) ------- Assault Rifle Mining Claw > --- INVENTORY (8) ---- Ion Engine Light Treads Light Treads Aluminum Leg Wheel Flight Unit Flight Unit Light Assault Rifle Peak State ------------ > --- POWER ------------ Light Nuclear Core > --- PROPULSION ------- Aluminum Leg Aluminum Leg > --- UTILITY ---------- Small Storage Unit > --- WEAPON ----------- Assault Rifle Light Assault Rifle > --- INVENTORY -------- Ion Engine Light Treads Light Treads Compact Wheel Compact Wheel Flight Unit Flight Unit Grenade Launcher [Rating: 8] Favorites ----------- Power Light Ion Engine Engine Light Ion Engine Power Core Light Nuclear Core Propulsion Aluminum Leg Leg Aluminum Leg Wheel Compact Wheel Utility Small Storage Unit Storage Small Storage Unit Processor Signal Interpreter Weapon Assault Rifle Ballistic Gun Assault Rifle Launcher Grenade Launcher Slashing Weapon Mining Claw Build | -11 -10 -10 ------- Run | Yrd Mat Min Slots Evolved . | . . . Power . | . . . Propulsion . | . . . Utility . | . . . Weapon . | . . . Parts Attached 11 | . 5 6 Power 2 | . 1 1 Engine 1 | . . 1 Core 1 | . 1 . Reactor . | . . . Propulsion 2 | . . 2 Treads . | . . . Leg . | . . . Wheel 2 | . . 2 Hover . | . . . Flight . | . . . Utility 1 | . . 1 Device . | . . . Storage . | . . . Processor 1 | . . 1 Hackware . | . . . Protection . | . . . Artifact . | . . . Weapon 6 | . 4 2 Energy Gun . | . . . Energy Cannon . | . . . Ballistic Gun 3 | . 3 . Ballistic Cannon . | . . . Launcher 2 | . 1 1 Special Weapon . | . . . Impact Weapon . | . . . Slashing Weapon 1 | . . 1 Piercing Weapon . | . . . Special Melee Weapon . | . . . Unidentified Prototypes . | . . . Parts Lost 4 | . 3 1 Power 1 | . 1 . Propulsion 1 | . 1 . Utility . | . . . Weapon 2 | . 1 1 Highest Loss Streak 3 | . 3 1 To Critical Strikes . | . . . Average Slot Usage (%) 83 | . 82 83 Engine 9 | . 7 12 Core 3 | . 6 . Leg 16 | . 27 2 Wheel 10 | . . 24 Storage 14 | . 14 14 Processor 3 | . . 8 Ballistic Gun 21 | . 27 14 Launcher 3 | . . 6 Peak Build Rating 8 | 6 8 7 Average Rating 6 | 6 6 5 On Entrance 5 | 6 6 3 Naked Turns . | . . . Heaviest Build 15 | 10 15 13 Greatest Support 32 | 20 20 32 Greatest Overweight (x) 1 | . 1 . Average Overweight (x) . | . . . Largest Inventory Capacity 8 | 8 8 8 Average Capacity 8 | 8 8 8 Most Carried 8 | 6 8 8 Average Carried 7 | 6 7 7 Final Capacity 8 | 8 8 8 Final Carried 8 | 6 8 8 Class Distribution -------------------- 100% | Mutant Dominant Class ---------------- Mutant | -10/Materials Mutant | -10/Mines Resources | -11 -10 -10 ----------- Run | Yrd Mat Min Matter Collected 485 | 200 154 131 Remotely . | . . . Salvage Created 483 | . 420 63 Parts 35 | . 22 13 Haulers Intercepted . | . . . Recyclers Shooed 1 | . . 1 Parts Field Recycled . | . . . Retrieved Matter . | . . . Parts Self-Destructed . | . . . Prevented . | . . . Kills | -11 -10 -10 ------- Run | Yrd Mat Min Combat Hostiles Destroyed 16 | . 7 9 Guns 7 | . 5 2 AOE 9 | . 2 7 Classes Destroyed 6 | . 5 1 Tunneler 1 | . . 1 Recycler 3 | . 3 . Operator 1 | . 1 . Watcher 1 | . 1 . Swarmer 12 | . 3 9 Grunt 4 | . 4 . Best Kill Streak 12 | . 6 12 Combat Bots Only 9 | . 3 9 Max Kills in Single Turn 2 | . 2 2 Gunslinging . | . . . Exploded 2 | . 1 2 Melee . | . . . Uniques/NPCs Destroyed . | . . . Combat | -11 -10 -10 -------- Run | Yrd Mat Min Hostile Shots Fired 90 | . 55 35 Missed 22 | . 12 10 Damage Taken 821 | . 535 286 Core 297 | . 176 121 Absorbed by Shields . | . . . Core Remaining (%) 100 | 100 . . Volleys Fired 50 | . 38 12 Largest 2 | . 2 2 Hottest 50 | . 50 50 Shots Fired 94 | . 75 19 Gun 84 | . 72 12 Cannon . | . . . Launcher 10 | . 3 7 Special . | . . . Kinetic 84 | . 72 12 Thermal . | . . . Explosive 10 | . 3 7 Electromagnetic . | . . . Robot Hit Streak 6 | . 6 6 Robot Miss Streak 5 | . 5 4 Penetration Max . | . . . Secondary Targets . | . . . Shots Hit Robots 50 | . 42 8 Core Hits 35 | . 22 13 Critical Kills . | . . . Critical Parts Destroyed . | . . . Critical Strikes . | . . . Melee Attacks 1 | . . 1 Impact . | . . . Slashing 1 | . . 1 Piercing . | . . . Sneak Attacks . | . . . Combat Hostiles . | . . . Follow-up Attacks . | . . . Damage Inflicted 1196 | . 750 446 Guns 522 | . 445 77 Cannons . | . . . Explosions 674 | . 305 369 Melee . | . . . Ramming . | . . . Kinetic 522 | . 445 77 Thermal 100 | . 100 . Explosive 574 | . 205 369 Electromagnetic . | . . . Impact . | . . . Slashing . | . . . Piercing . | . . . Highest Corruption . | . . . Average Corruption . | . . . Corruption Purged . | . . . Corruption Blocked . | . . . Overload Shots . | . . . Overflow Damage 59 | . 55 4 Projectiles . | . . . Explosions 59 | . 55 4 Melee . | . . . Knockbacks . | . . . Impact . | . . . Kinetic . | . . . Secondary . | . . . Self-Inflicted Damage 171 | . 86 85 Shots 6 | . 2 4 Rammed . | . . . Targets Rammed . | . . . Kicked . | . . . Crushed . | . . . Highest Temperature 20 | . 20 . Average Temperature 7 | . 7 . Received Heat Transfer 201 | . 201 . Siege Activations . | . . . Robots Corrupted . | . . . Combat Hostiles . | . . . Parts Fried . | . . . Impact Corruptions . | . . . Robots Melted . | . . . Combat Hostiles . | . . . Parts Melted . | . . . Heat Transferred 50 | . 50 . Parts Sabotaged . | . . . Parts Stolen . | . . . Parts Stripped . | . . . Power Chain Reactions . | . . . Alert | -11 -10 -10 ------- Run | Yrd Mat Min Peak Influence 357 | . 266 357 Initial 103 | . . 103 Average 189 | . 97 310 Maximum Alert Level 1 | . 1 1 Low Security (%) 56 | 100 94 5 Level 1 43 | . 5 94 Level 2 . | . . . Level 3 . | . . . Level 4 . | . . . Level 5 . | . . . High Security . | . . . Max Security . | . . . Squads Dispatched 1 | . 1 . Investigation . | . . . Extermination . | . . . Reinforcement 1 | . 1 . Assault . | . . . Garrison . | . . . Intercept . | . . . Searches Triggered . | . . . Construction Impeded . | . . . Haulers Reinforced . | . . . Active Scanning Responses . | . . . Cargo Convoy Interrupts . | . . . Stealth | -11 -10 -10 --------- Run | Yrd Mat Min Distress Signals . | . . . Communications Jammed . | . . . Distress Signals . | . . . Times Spotted 20 | . 11 9 Peak Tracking Total 6 | . 5 6 Tactical Retreats 1 | . 1 . Traps | -11 -10 -10 ------- Run | Yrd Mat Min Traps Triggered . | . . . Indirectly . | . . . Trap Hack Attempts . | . . . Triggered . | . . . Disarmed . | . . . Reprogrammed . | . . . Reused . | . . . Traps Extracted . | . . . Installed . | . . . Triggered . | . . . Machines | -11 -10 -10 ---------- Run | Yrd Mat Min Machines Disabled 2 | . 1 1 Max in Single Turn 1 | . 1 1 Machines Repaired . | . . . Machines Dismantled . | . . . Machines Sabotaged . | . . . Overloaded Fab Kills . | . . . Hacking | -11 -10 -10 --------- Run | Yrd Mat Min Machines Accessed 2 | . 2 . Terminals 2 | . 2 . Fabricators . | . . . Repair Stations . | . . . Recycling Units . | . . . Scanalyzers . | . . . Garrison Access . | . . . Total Hacks 12 | . 12 . Successful 6 | . 6 . Failed 6 | . 6 . Catastrophic 1 | . 1 . Database Lockouts . | . . . Manual 9 | . 9 . Terminals 12 | . 12 . Fabricators . | . . . Repair Stations . | . . . Recycling Units . | . . . Scanalyzers . | . . . Garrison Access . | . . . Terminal Hacks 3 | . 3 . Prototype ID Bank 1 | . 1 . Terminal Index 1 | . 1 . Locate Traps 1 | . 1 . Fabricator Hacks . | . . . Repair Station Hacks . | . . . Recycling Unit Hacks . | . . . Scanalyzer . | . . . Garrison Access Hacks . | . . . Unauthorized Hacks 3 | . 3 . Terminals 3 | . 3 . Assimilate 1 | . 1 . Botnet 1 | . 1 . Operators 1 | . 1 . Fabricators . | . . . Repair Stations . | . . . Recycling Units . | . . . Scanalyzers . | . . . Garrison Access . | . . . Data Cores Recovered . | . . . Used . | . . . Hacking Detections 2 | . 2 . Full Trace Events . | . . . Feedback Events . | . . . Feedback Blocked . | . . . Robot Schematics Acquired . | . . . Robots Built . | . . . Authchips . | . . . Time . | . . . Total Robot Build Rating . | . . . Part Schematics Acquired . | . . . Parts Built . | . . . Authchips . | . . . Time . | . . . Total Part Build Rating . | . . . Parts Repaired . | . . . Time . | . . . Parts Recycled . | . . . Recycled Matter . | . . . Retrieved Matter . | . . . Retrieved Components . | . . . Parts Scanalyzed . | . . . Part Schematics Acquired . | . . . Parts Damaged . | . . . Bothacking | -11 -10 -10 ------------ Run | Yrd Mat Min Used RIF Installer . | . . . Robots Hacked . | . . . Non-combat . | . . . Combat . | . . . Robot Hacks Applied . | . . . Relay Couplers Released . | . . . Fabnet Peak Effective % . | . . . Robots Rewired . | . . . Allies Hacked . | . . . Hacks Repelled . | . . . Allies | -11 -10 -10 -------- Run | Yrd Mat Min Total Allies . | . . . Largest Group . | . . . Highest-Rated Group . | . . . Highest-Rated Ally . | . . . Total Orders . | . . . Ally Attacks . | . . . Total Damage . | . . . Kills . | . . . Allies Corrupted . | . . . Allies Melted . | . . . Intel | -11 -10 -10 ------- Run | Yrd Mat Min Robot Analysis Total . | . . . Derelict Logs Recovered 1 | . . 1 Drone Launches . | . . . Drone Recoveries . | . . . Exploration | -11 -10 -10 ------------- Run | Yrd Mat Min Turns Passed 496 | 3 278 215 Spaces Moved 301 | 3 130 168 Core . | . . . Treads . | . . . Legs 143 | 3 130 10 Wheels 158 | . . 158 Hover . | . . . Flight . | . . . Fastest Speed 100 | 120 120 100 Average Speed 109 | 120 120 101 Slowest Speed 190 | 120 190 120 Overloaded Moves . | . . . Propulsion Burnouts . | . . . Robots Hopped . | . . . Cave-ins Triggered . | . . . Exploration Rate (%) 18 | 2 32 21 Regions Visited 2 Branch Regions 1 Pre-discovered Areas . | . . . Known Exits Taken . | . . . Unknown Exits Taken 2 | 1 1 . Scrap Searched 1 | . . 1 Spaces Dug . | . . . Terrain Destroyed 82 | . 28 54 Melee . | . . . Projectile . | . . . AOE 82 | . 28 54 Terrain Rammed . | . . . Walls Destroyed . | . . . Machines Disabled . | . . . Actions | -11 -10 -10 --------- Run | Yrd Mat Min Total 378 | 2 183 193 Wait 7 | . 3 4 Move 299 | 2 129 168 Hop . | . . . Pick Up 5 | . 3 2 Fast Attach 3 | . . 3 Attach 4 | . 2 2 Detach 1 | . 1 . Swap 4 | . 3 1 Drop 4 | . 4 . Fire 50 | . 38 12 Melee 1 | . . 1 Ram . | . . . Kick . | . . . Crush . | . . . Escape Stasis . | . . . Rewire . | . . . Trap . | . . . Miscellaneous . | . . . Route ------- -11/Scrapyard -10/Materials -10/Mines History --------- Turn | Location | Event 1 | -11/Scrapyard | Discovered new exit (range 2) 4 | -11/Scrapyard | Entered Materials 227 | -10/Materials | Discovered new exit (range 11) 275 | -10/Materials | Core integrity fell below 50% 282 | -10/Materials | Entered Mines 289 | -10/Mines | Core integrity fell below 20% 303 | -10/Mines | Build established: Mutant 305 | -10/Mines | Lost 3 parts (1p1n1w) 327 | -10/Mines | Destroyed 9 combat bots 383 | -10/Mines | Learned Materials emergency access door positions 497 | -10/Mines | Destroyed self via exploding Plasma Injector Last Messages --------------- Data stored: Materials emergency access points. 00385_ S-10 Pest destroyed. 00385_ Destroyed Flight Unit. 00387_ Grenade Launcher destroyed. 00388_ S-10 Pest destroyed. 00392_ Acquired 2 matter. 00393_ Acquired 16 matter. 00393_ R-06 Scavenger collects Lgt. Assault Rifle. 00409_ U-05 Engineer builds a Wall. 00414_ U-05 Engineer lays Concrete. 00433_ T-07 Excavator is excavating. 00437_ T-07 Excavator destroyed. 00439_ Acquired 14 matter. 00441_ Acquired Wheel. 00483_ U-05 Engineer builds a Wall. 00484_ U-05 Engineer lays Concrete. 00485_ Acquired Mining Claw. 00485_ U-05 Engineer lays Concrete. 00488_ U-05 Engineer builds a Wall. 00497_ Plasma Injector explodes. Map ----- +----------------------------------------------------+ | | | | | | | | | | | | | | | | | | | | | | | | | | | | | | | | | | | ????????????????????????????????? | | ????????????????????????????????? | | ?????????????#########??????????? | | ????????????## ###########? | | ?????????#### #### #? | | ????????## """ #? | | ????????# ## * ##### """ #? | | ???????## #### ##=##### """ #? | | ??????## ##?# # # @ #? | | ?????## #?# ## ## ## #? | | ?????# #?# ## ## ## #? | | ?????# #?# ## ## ## #? | | ?????## ### ## ## ## #? | | ??????### ## ## #########? | | ????????## ## ##### ###??????? | | ?????????### ## #???# # ##?????? | | ???????????# ## ##### ####??? | | ???????????# # #??? | | ??????####?# # ######= ##??? | | ??????# ### # ?????# ##?? | | ??????## # ?????# #?? | | ???????# # ?????## # #?? | | ???????######## ??????##### #?? | | ?????????????? ????????# #?? | | ??????????????##????????# ##? | | ????????????????????????# #? | | ????????????????????????## #? | | ?????????????????????????# #? | | ????????????????????????## ##? | | ????????????????????????# ##?? | | ????????????????????????# ##??? | | ????????????????????????# ##??? | | ????????????????????????# #??? | +----------------------------------------------------+ Best States ------------- Heat Dissipation 25 Energy Generation 14 Energy Capacity 160 Matter Stores 300 Matter Capacity 300 Sight Range 16 Terrain Scan Density 10 Evasion (%) 55 Item Schematics ----------------- None Robot Schematics ------------------ None Fabricated ------------ Nothing Alien Tech Used ----------------- None Achievements -------------- None Challenges ------------ None Game ------ Seed CouplerRemoteAccelerator Manual? 0 Play Time 00:05:43 Cumulative 939.4 hours Start 2024.09.18 @ 15:51:51 End 2024.09.18 @ 16:04:46 Sessions 1 Manual Loads 0 Difficulty Rogue Special Mode None Game No. 1142 Rogue 862 Adventurer 124 Explorer 156 Win Type - Total 41 Types 28/0/8/3/1/0/0/1/0 Lore% 82 Gallery% 90 Achievement% 78 Wizard Run 0 Options --------- Layout 0 ASCII 0 Keyboard 1 Movement Numpad Keybinds 0 Fullscreen 2 Font 18/X11 Map View 76x50 Zoom Use 0% Tactical HUD 1 Map Filters NONE Filters NONE Steam 1 RUN: dcc717de-72f9-4b99-80e8-7ccdcf63eddc